Workbook

Sheet FSUP
H1: Ministério do Desenvolvimento Regional - MDR
H2: Companhia de Desenvolvimento dos Vales do São Francisco e do Parnaíba
A5: PROPOSTA FINANCEIRA APOIO A FISC. E SUP. DE OBRA | N5: CODIGO:
N6: FSUP
A7: NOME DA CONSULTORA:
A9: PROJETO: | G9: OBJETO: | N9: EDITAL:
A10: APOIO À FISCALIZAÇÃO E SUPERVISÃO TÉCNICA DE OBRAS | G10: APOIO À FISCALIZAÇÃO E SUPERVISÃO TÉCNICA DE CONTRATOS NA ÁREA DE ATUAÇÃO DA CODEVASF NO ESTADO DO AMAPÁ
A11: SERVIÇOS PAGOS A PREÇO UNITÁRIO
A13: MÃO-DE-OBRA
A14: A1 - TOTAL DE SALÁRIO DA EQUIPE COM VÍNCULO ( FSUP-I ) | N14: ='FSUP-I'!K23 -> 874684.8
A15: A2 - TOTAL DE SALÁRIO DO AUTÔNOMO ( FSUP-I ) | N15: ='FSUP-I'!L23 -> 0
A16: A - TOTAL DOS CUSTOS DE SALÁRIOS DA EQUIPE | N16: =SUM(N14:O15) -> 874684.8
A17: B1 - ENCARGOS SOCIAiS DE B1 ( 73,29% DO A1 ) | N17: =ROUND(N14*'FSUP-VII'!$F$51,2) -> 641056.49
A18: B2 - ENCARGOS SOCIAIS DE B2 ( 20% DO A2 ) | N18: =ROUND(N15*0.2,2) -> 0
A19: B - TOTAL DOS CUSTOS COM ENCARGOS SOCIAIS | N19: =SUM(N17:O18) -> 641056.49
A20: C1 - CUSTO TOTAL DAS PASSAGENS AÉREAS E TERRESTRES ( FSUP-II ) | N20: ='FSUP-II'!F25 -> 1691.66
A21: C2 - CUSTO TOTAL DAS DIÁRIAS ( FSUP-II ) | N21: ='FSUP-II'!K25 -> 516535
A22: C - TOTAL DO CUSTO COM VIAGENS | N22: =SUM(N20:O21) -> 518226.66
A24: MANUTENÇÃO OPERACIONAL
A25: 1 - CUSTO DOS VEÍCULOS ( FSUP-III, ITEM 1 ) | N25: ='FSUP-III'!G17 -> 405067.92
A26: 2 - CUSTO DA MANUTENÇÃO E ADMINISTRAÇÃO DE ESCRITÓRIO ( FSUP-III, ITEM 2 ) | N26: ='FSUP-III'!G28 -> 26885.3
A27: 3 - CUSTO DOS EQUIPAMENTOS DE ESCRITÓRIO E FISCALIZAÇÃO ( FSUP-III, ITEM 3 ) | N27: ='FSUP-III'!G35 -> 15540
A28: 4 - CUSTO DOS SERVIÇOS GRÁFICOS / COMPUTAÇÃO ( FSUP-III, ITEM 4 ) | N28: ='FSUP-III'!G40 -> 5269.32
A29: D - TOTAL DOS PREÇOS COM MANUTENÇÃO OPERACIONAL | N29: =SUM(N25:O28) -> 452762.54
A30: TOTAL DOS CUSTOS DIRETOS | N30: =N29+N22+N19+N16 -> 2486730.49
A32: E - CUSTOS DE ADMINISTRAÇÃO = ( 25% DO A ) | N32: =ROUND('FSUP-V'!$F$39*(N16),2) -> 218671.2
A33: F - REMUNERAÇÃO DA EMPRESA ( LUCRO ) = ( 10% DE A + B + C + D + E ) | N33: =ROUND(0.1*(N16+N19+N22+N29+N32),2) -> 270540.17
A34: G - DESPESAS FISCAIS = ( 16,62% DE A + B + C + D + E + F ) | N34: =ROUND(0.1662*(N16+N19+N22+N29+N32+N33),2) -> 494601.54
A35: TOTAL DOS CUSTOS INDIRETOS | N35: =SUM(N32:O34) -> 983812.91
A36: TOTAL DA PROPOSTA (R$) | N36: =N35+N30 -> 3470543.4
A37: NOME DO INFORMANTE: | J37: QUALIFICAÇÃO:
J38: ANALISTA EM DESENVOLVIMENTO REGIONAL DA CODEVASF
A39: ASSINATURA: | N39: DATA:
A41: OBSERVAÇÃO:
A42: ESTE ORÇAMENTO FOI CALCULADO COM OS SEGUINTES % MÁXIMOS DE ENCARGOS SOCIAIS E CUSTOS INDIRETOS:
A43: 1. ENCARGOS SOCIAIS DE AUTÔNOMOS = 20% SOBRE O SALÁRIO MENSAL
A44: 2. ENCARGOS SOCIAIS DA EQUIPE COM VÍNCULO = 73,29% SOBRE O SALÁRIO MENSAL
A45: 3. CUSTO DE ADMINISTRAÇÃO = 25,00% SOBRE O TOTAL DE SALÁRIOS DA EQUIPE (A1 + A2)
A46: 4. REMUNERAÇÃO DA EMPRESA (LUCRO) = 10,00% SOBRE OS ITENS DE CUSTOS DIRETOS + CUSTO DE ADMINISTRAÇÃO
A47: 5. DF = A SOMA DOS TRIBUTOS (EX: ISS 5,00 + PIS 1,65 + COFINS 7,60 = 14,25%)
A48: 6. DF' = UTILIZADO NA LINHA "H" SERÁ CALCULADO APLICANDO A SEGUINTE FÓRMULA:
A49: DF' = { [ 1 / ( 1 - DF) ] - 1 } x 100
A50: DF' = { [ 1 / ( 1 - 0,1425 ) ] - 1 } x 100
A51: DF' = 0,1662 ou 16,62%
A52: 7. NÃO foram incluídos os tributos IRPJ e CSLL, em cumprimento ao Acórdão nº 325/2007 – TCU – Plenário.

Sheet FSUP-I
A1: Ministério da Integração Nacional - MI
A2: Companhia de Desenvolvimento dos Vales do São Francisco e do Parnaíba
A5: SALÁRIOS DA EQUIPE TÉCNICA | K5: CODIGO:
K6: FSUP-I
A7: NOME DA CONSULTORA:
A8: =FSUP!A8 -> 0
A9: PROJETO: | B9: OBJETO: | K9: EDITAL:
A10: =FSUP!A10 -> APOIO À FISCALIZAÇÃO E SUPERVISÃO TÉCNICA DE OBRAS | B10: =FSUP!G10 -> APOIO À FISCALIZAÇÃO E SUPERVISÃO TÉCNICA DE CONTRATOS NA ÁREA DE ATUAÇÃO DA CODEVASF NO ESTADO DO AMAPÁ
A11: EQUIPE TÉCNICA | D11: COMPOSIÇÃO DOS SALÁRIOS POR PROFISSÃO/FUNÇÃO | K11: CUSTOS
D12: SALÁRIO | E12: ENC. | F12: CUSTO | G12: R. EMP. | H12: DESP. | I12: SALÁRIO | J12: HORA | K12: SALÁRIO | L12: SALÁRIO
A13: PROFISSÃO/FUNÇÃO | B13: S | C13: QTD | D13: CATEG. | E13: SOCIAIS | F13: ADM. | G13: LUCRO | H13: FISCAIS | I13: MENSAL | J13: TÉCNICA | K13: A1 | L13: A2
A14: (1) | B14: (2) | C14: (3) | D14: (4) | E14: (5) | F14: (6) | G14: (7) | H14: (8) | I14: (9) | J14: (10) | K14: (11) | L14: (12)
A15: NÍVEL SUPERIOR
A16: ENGENHEIRO COORDENADOR E DE APOIO | B16: P2 | C16: 12 | D16: 11711.04 | E16: =ROUND(D16*'FSUP-VII'!$F$51,2) -> 8583.02 | F16: =ROUND(D16*0.23,2) -> 2693.54 | G16: =ROUND(0.1*(D16+E16+F16),2) -> 2298.76 | H16: =ROUND(0.1662*(D16+E16+F16+G16),2) -> 4202.59 | I16: =SUM(D16:H16) -> 29488.95 | J16: =ROUND(I16/176,2) -> 167.55 | K16: =ROUND(C16*D16,2) -> 140532.48
A17: ENGENHEIRO DE APOIO À FISCALIZAÇÃO | B17: P3 | C17: 36 | D17: 9724 | E17: =ROUND(D17*'FSUP-VII'!$F$51,2) -> 7126.72 | F17: =ROUND(D17*0.23,2) -> 2236.52 | G17: =ROUND(0.1*(D17+E17+F17),2) -> 1908.72 | H17: =ROUND(0.1662*(D17+E17+F17+G17),2) -> 3489.53 | I17: =SUM(D17:H17) -> 24485.49 | J17: =ROUND(I17/176,2) -> 139.12 | K17: =ROUND(C17*D17,2) -> 350064
C18: =C48*$E$43*12 -> 0
A19: NIVÉL TÉCNICO | C19: 0
A20: TÉCNICO, LABORATORISTA OU CADISTA | B20: T2 | C20: 36 | D20: 4033.92 | E20: =ROUND(D20*'FSUP-VII'!$F$51,2) -> 2956.46 | F20: =ROUND(D20*0.23,2) -> 927.8 | G20: =ROUND(0.1*(D20+E20+F20),2) -> 791.82 | H20: =ROUND(0.1662*(D20+E20+F20+G20),2) -> 1447.6 | I20: =SUM(D20:H20) -> 10157.6 | J20: =ROUND(I20/176,2) -> 57.71 | K20: =ROUND(C20*D20,2) -> 145221.12
A21: TOPÓGRAFO | B21: T1 | C21: 36 | D21: 4781.92 | E21: =ROUND(D21*'FSUP-VII'!$F$51,2) -> 3504.67 | F21: =ROUND(D21*0.23,2) -> 1099.84 | G21: =ROUND(0.1*(D21+E21+F21),2) -> 938.64 | H21: =ROUND(0.1662*(D21+E21+F21+G21),2) -> 1716.03 | I21: =SUM(D21:H21) -> 12041.1 | J21: =ROUND(I21/176,2) -> 68.42 | K21: =ROUND(C21*D21,2) -> 172149.12
A22: AUXILIAR DE TOPÓGRAFO | B22: T3 | C22: 36 | D22: 1853.28 | E22: =ROUND(D22*'FSUP-VII'!$F$51,2) -> 1358.27 | F22: =ROUND(D22*0.23,2) -> 426.25 | G22: =ROUND(0.1*(D22+E22+F22),2) -> 363.78 | H22: =ROUND(0.1662*(D22+E22+F22+G22),2) -> 665.06 | I22: =SUM(D22:H22) -> 4666.64 | J22: =ROUND(I22/176,2) -> 26.52 | K22: =ROUND(C22*D22,2) -> 66718.08
A23: TOTAIS DOS SALÁRIOS DA EQUIPE (R$) | K23: =SUM(K15:K22) -> 874684.8 | L23: =SUM(L15:L22) -> 0
A24: NOME DO INFORMANTE: | G24: QUALIFICAÇÃO:
A25: =FSUP!A38 -> 0 | G25: =FSUP!J38 -> ANALISTA EM DESENVOLVIMENTO REGIONAL DA CODEVASF
A26: ASSINATURA: | K26: DATA:
A28: OBSERVAÇÃO:
A29: 1 - DESCRIÇÃO DO PROFISSIONAL/FUNÇÃO
A30: 2- CLASSIFICAÇÃO DA EXPERIÊNCIA DO PROFISSIONAL
A31: 3- QUANTIDADE EM HOMENS X MÊS, POR CATEGORIA. CALCULO Nº DE PROFISSIONAIS PELO PRAZO EM MESES.
A32: 4- SALÁRIO BASE DA CATEGORIA
A33: 5 - ENC. SOCIAIS, APLICAR NO MÁXIMO 20% PARA AUTÔNOMOS E 73,29% PARA EMPREG. COM VÍNCULO DETALHAR NO FSUP-VII
A34: 6- CUSTO DE ADMINISTRAÇÃO, APLICAR NO MÁXIMO 25% SOBRE O SALÁRIO BASE DA CATEGORIA
A35: 7 - REMUN. DA EMPRESA (LUCRO), APLICAR NO MÁXIMO 10% SOBRE O SALÁRIO DA CATEG + ENCARGOS SOCIAIS + CUSTO DE ADM
A36: 8 - DESP. FISCAIS, APLICAR O DF' CALCULADO NO FSUP-VI SOBRE O SALÁRIO DA CATEG. + ENC. SOCIAIS + CUSTO DE ADM. + LUCRO
A37: 9- PREÇO DO HOMEM MÊS POR CATEGORIA = SOMATÓRIO DOS ITENS (4) + (5) + (6) + (7) +(8)
A38: 10- PREÇO DA HORA TÉCNICA = (9) / 176
A39: 11 - SALÁRIOS DE A1 = SALARIO DOS EMPREGADOS COM VÍNCULO X QTD HOMEM MÊS. EXPORTAR O TOTAL PARA LINHA A1 DO FSUP
A40: 12 - SALÁRIOS DE A2 = SALÁRIO DO AUTÔNOMO X QTD HOMEM X MÊS. EXPORTAR O TOTAL PARA A LINHA A2 DO FSUP
A43: EQUIPE BASE | D43: Equipes | E43: 3
A45: PROFISSÃO/FUNÇÃO | B45: S | C45: QTD
A46: NÍVEL SUPERIOR
A47: ENGENHEIRO DE APOIO À FISCALIZAÇÃO | B47: P3 | C47: 1
A49: NIVÉL TÉCNICO
A50: TÉCNICO, LABORATORISTA OU CADISTA | B50: T2 | C50: 1
A51: TOPÓGRAFO | B51: T1 | C51: 1
A52: AUXILIAR DE TOPÓGRAFO | B52: T3 | C52: 1
A54: PARA TODOS OS LOTES FOI CONSIDERADO 01 CORRDENADOR PARA TODAS AS EQUIPES
A55: ENGENHEIRO COORDENADOR E DE APOIO | B55: P2 | C55: 1

Sheet FSUP-II
B1: Ministério da Integração Nacional - MI
B2: Companhia de Desenvolvimento dos Vales do São Francisco e do Parnaíba
A5: VIAGENS DA EQUIPE TÉCNICA | L5: CODIGO:
L6: FSUP-II
A7: NOME DA CONSULTORA:
A8: =FSUP!A8 -> 0
A9: PROJETO: | C9: OBJETO: | L9: EDITAL:
A10: =FSUP!A10 -> APOIO À FISCALIZAÇÃO E SUPERVISÃO TÉCNICA DE OBRAS | C10: =FSUP!G10 -> APOIO À FISCALIZAÇÃO E SUPERVISÃO TÉCNICA DE CONTRATOS NA ÁREA DE ATUAÇÃO DA CODEVASF NO ESTADO DO AMAPÁ
C11: PASSAGENS | I11: DIÁRIAS
A12: SÍMBOLO | B12: ROTEIRO | C12: A/T | D12: QTD | E12: CUSTO (R$) | G12: PREÇO (R$) | I12: QTD | J12: CUSTO (R$) | L12: PREÇO (R$)
E13: UNITÁRIO | F13: TOTAL | G13: UNITÁRIO | H13: TOTAL | J13: UNITÁRIO | K13: TOTAL | L13: UNITÁRIO | M13: TOTAL
A14: P2 | B14: MACAPÁ - BRASILIA - MACAPÁ | C14: T | D14: 2 | E14: 845.83 | F14: =ROUND(D14*E14,2) -> 1691.66 | G14: =IF(E14<>0,E14*(1+0.1)*(1+0.1662),0) -> 1085.047641 | H14: =ROUND(D14*G14,2) -> 2170.1 | I14: =D14*2 -> 4 | J14: 295 | K14: 295 | L14: =IF(J14<>0,J14*(1+0.1)*(1+0.1662),0) -> 378.4319 | M14: =ROUND(I14*L14,2) -> 1513.73
A15: P3 | B15: VIAGENS NO ESTADO | C15: T | I15: ='FSUP-I'!E43*15*12 -> 540 | J15: 239 | K15: =ROUND(I15*J15,2) -> 129060 | L15: =IF(J15<>0,J15*(1+0.1)*(1+0.1662),0) -> 306.59398 | M15: =ROUND(I15*L15,2) -> 165560.75
A16: T1 | B16: VIAGENS NO ESTADO | C16: T | I16: =I15 -> 540 | J16: 239 | K16: =ROUND(I16*J16,2) -> 129060 | L16: =IF(J16<>0,J16*(1+0.1)*(1+0.1662),0) -> 306.59398 | M16: =ROUND(I16*L16,2) -> 165560.75
A17: T2 | B17: VIAGENS NO ESTADO | C17: T | I17: =I16 -> 540 | J17: 239 | K17: =ROUND(I17*J17,2) -> 129060 | L17: =IF(J17<>0,J17*(1+0.1)*(1+0.1662),0) -> 306.59398 | M17: =ROUND(I17*L17,2) -> 165560.75
A18: T3 | B18: VIAGENS NO ESTADO | C18: T | I18: =I17 -> 540 | J18: 239 | K18: =ROUND(I18*J18,2) -> 129060 | L18: =IF(J18<>0,J18*(1+0.1)*(1+0.1662),0) -> 306.59398 | M18: =ROUND(I18*L18,2) -> 165560.75
A25: TOTAIS DE CUSTOS E DE PREÇOS DE PASSAGENS E DIÁRIAS (R$) | F25: =SUM(F14:F24) -> 1691.66 | H25: =SUM(H14:H24) -> 2170.1 | K25: =SUM(K14:K24) -> 516535 | M25: =SUM(M14:M24) -> 663756.73
A26: NOME DO INFORMANTE: | G26: QUALIFICAÇÃO:
A27: =FSUP!A38 -> 0 | G27: =FSUP!J38 -> ANALISTA EM DESENVOLVIMENTO REGIONAL DA CODEVASF
A28: ASSINATURA: | L28: DATA:
A30: OBSERVAÇÃO:
A31: 1 - VIAGENS DURANTE A EXECUÇÃO DOS SERVIÇOS
A32: 2 - NÃO INCLUIR VIAGENS COM MOBILIZAÇÃO/DESMOBILIZAÇÃO DA EQUIPE QUE SERÃO CALCULADOS NO PSUP-IV
A33: 3 - AS DIÁRIAS COBREM DESPESAS COM ALIMENTAÇÃO E HOSPEDAGEM
A34: 4 - INDICAR (A) PARA AS PASSAGENS AÉREAS E (T) PARA AS TERRESTRES
A35: 5 - CUSTO DO ITEM SEM LUCRO E SEM DESPESAS FISCAIS
A36: 6 - PREÇO = CUSTO + LUCRO+ DESPESAS FISCAIS E SERÁ CALCULADO COM A SEGUINTE FORMULA:CUSTO*(1+0,1)*(1 +0,1662)
A37: 6 - EXPORTAR O TOTAL DO CUSTO COM PASSAGENS E DIÁRIAS, RESPECTIVAMENTE, LINHAS "C1" E "C2" DO PSUP
A38: 7 - OS PREÇOS UNITÁRIOS SERÃO UTILIZADOS PARA FINS DE FATURARAMENTO

Sheet FSUP-III
C1: Ministério da Integração Nacional - MI
C2: Companhia de Desenvolvimento dos Vales do São Francisco e do Parnaíba
A5: DESPESAS OPERACIONAIS | I5: CODIGO:
I6: FSUP-III
A7: NOME DA CONSULTORA:
A8: =FSUP!A8 -> 0
A9: PROJETO: | C9: OBJETO: | I9: EDITAL:
A10: =FSUP!A10 -> APOIO À FISCALIZAÇÃO E SUPERVISÃO TÉCNICA DE OBRAS | C10: =FSUP!G10 -> APOIO À FISCALIZAÇÃO E SUPERVISÃO TÉCNICA DE CONTRATOS NA ÁREA DE ATUAÇÃO DA CODEVASF NO ESTADO DO AMAPÁ
A11: DISCRIMINAÇÃO | D11: UNID. | E11: QUANT. | F11: CUSTOS (R$) | H11: PREÇOS (R$)
F12: UNITÁRIO | G12: TOTAL | H12: UNITÁRIO | I12: TOTAL
A14: 1. VEÍCULOS
A15: 1.1 ALUGUEL - VEÍCULO TIPO PICK-UP CABINE DUPLA 4X4 (163 CV) | D15: UND X MÊS | E15: 48 | F15: 5855.33 | G15: =IF(E15<>0,ROUND(E15*F15,2),"") -> 281055.84 | H15: =IF(F15<>0,F15*(1+0.1)*(1+0.1662),0) -> 7511.334431 | I15: =IF(E15<>0,ROUND(E15*H15,2),"") -> 360544.05
A16: 1.2 ALUGUEL - VEÍCULO TIPO LEVE SEDAN (1.4 OU SUPERIOR) | D16: UND X MÊS | E16: 36 | F16: 3444.78 | G16: =IF(E16<>0,ROUND(E16*F16,2),"") -> 124012.08 | H16: =IF(F16<>0,F16*(1+0.1)*(1+0.1662),0) -> 4419.03268 | I16: =IF(E16<>0,ROUND(E16*H16,2),"") -> 159085.18
A17: TOTAL DOS CUSTOS DOS VEÍCULOS (R$) | G17: =SUM(G15:G16) -> 405067.92 | I17: =SUM(I15:I16) -> 519629.23
A19: 2. MANUTENÇÃO E ADMINISTRAÇÃO DE ESCRITÓRIO
A20: 2.1 ALUGUEL - ESCRITÓRIO APOIO LOGÍSTICO | D20: UND X MÊS | E20: 12 | F20: ='PESQUISA DE PREÇOS'!E2 -> 1113.333333 | G20: =IF(E20<>0,ROUND(E20*F20,2),"") -> 13360 | H20: =IF(F20<>0,F20*(1+0.1)*(1+0.1662),0) -> 1428.206267 | I20: =IF(E20<>0,ROUND(E20*H20,2),"") -> 17138.48
A21: 2.2 MOBILIÁRIO - ESCRITÓRIO APOIO LOGÍSTICO | D21: UND X MÊS | E21: 12 | F21: ='PESQUISA DE PREÇOS'!N2 -> 177.1806 | G21: 2126.17 | H21: 227.2908173 | I21: 2727.49
A22: 2.3 TELEFONE / INTERNET | D22: UND X MÊS | E22: 12 | F22: ='PESQUISA DE PREÇOS'!S7 -> 113.2933333 | G22: 1359.52 | H22: 145.3349539 | I22: 1744.02
A23: 2.4 TELEFONE CELULAR | D23: UND X MÊS | E23: =E16+E15 -> 84 | F23: ='PESQUISA DE PREÇOS'!Y2 -> 60.081 | G23: 5046.8 | H23: 77.07310842 | I23: 6474.14
A24: 2.5 ENERGIA ELÉTRICA (350 KWH) | D24: UND X MÊS | E24: 12 | F24: ='PESQUISA DE PREÇOS'!AB2 -> 198.233 | G24: 2378.8 | H24: 254.2972571 | I24: 3051.57
A25: 2.6 ÁGUA E ESGOTO | D25: UND X MÊS | E25: 12 | F25: ='PESQUISA DE PREÇOS'!AE2 -> 93.45 | G25: 1121.4 | H25: 119.879529 | I25: 1438.55
A26: 2.7 MATERIAL DE ESCRITÓRIO | D26: UND X MÊS | E26: 12 | F26: ='PESQUISA DE PREÇOS'!AJ2 -> 84.65 | G26: 1015.8 | H26: 108.590713 | I26: 1303.09
A27: 2.8 MATERIAL DE LIMPEZA | D27: UND X MÊS | E27: 12 | F27: ='PESQUISA DE PREÇOS'!AO2 -> 39.73416667 | G27: 476.81 | H27: 50.97178368 | I27: 611.66
A28: TOTAL DOS CUSTOS DE MANUTENÇÃO E ADMINISTRAÇÃO DE ESCRITÓRIO (R$) | G28: =SUM(G20:G27) -> 26885.3 | I28: =SUM(I20:I27) -> 34489
A30: 3. EQUIPAMENTOS DIVERSOS
A31: 3.1 ALUGUEL - NOTEBOOK PARA FISCALIZAÇÃO | D31: UND X MÊS | E31: =E15+E16 -> 84 | F31: ='PESQUISA DE PREÇOS'!AY2 -> 62 | G31: =IF(E31<>0,ROUND(E31*F31,2),"") -> 5208 | H31: =IF(F31<>0,F31*(1+0.1)*(1+0.1662),0) -> 79.53484 | I31: =IF(E31<>0,ROUND(E31*H31,2),"") -> 6680.93
A32: 3.2 ALUGUEL - IMPRESSORA MULTIFUNCIONAL | D32: UND X MÊS | E32: 12 | F32: ='PESQUISA DE PREÇOS'!BI2 -> 23 | G32: =IF(E32<>0,ROUND(E32*F32,2),"") -> 276 | H32: =IF(F32<>0,F32*(1+0.1)*(1+0.1662),0) -> 29.50486 | I32: =IF(E32<>0,ROUND(E32*H32,2),"") -> 354.06
A33: 3.3 ALUGUEL - EQUIPAMENTO TOPOGRAFIA - ESTAÇÃO TOTAL E ACESSORIOS | D33: UND X MÊS | E33: 36 | F33: ='PESQUISA DE PREÇOS'!BS2 -> 261.6666667 | G33: =IF(E33<>0,ROUND(E33*F33,2),"") -> 9420 | H33: =IF(F33<>0,F33*(1+0.1)*(1+0.1662),0) -> 335.6712333 | I33: =IF(E33<>0,ROUND(E33*H33,2),"") -> 12084.16
A34: 3.4 ALUGUEL - GPS DE MÃO (02 X 12 MESES) | D34: UND X MÊS | E34: 36 | F34: ='PESQUISA DE PREÇOS'!CC2 -> 17.66666667 | G34: =IF(E34<>0,ROUND(E34*F34,2),"") -> 636 | H34: =IF(F34<>0,F34*(1+0.1)*(1+0.1662),0) -> 22.66315333 | I34: =IF(E34<>0,ROUND(E34*H34,2),"") -> 815.87
A35: TOTAL DOS CUSTOS DOS EQUIPAMENTOS DIVERSOS (R$) | G35: =SUM(G31:G34) -> 15540 | I35: =SUM(I31:I34) -> 19935.02
A37: 4. SERVIÇOS GRÁFICOS / COMPUTAÇÃO | G37: =IF(E37<>0,ROUND(E37*F37,2),"") ->  | H37: =IF(F37<>0,F37*(1+0.1)*(1+0.1662),"") ->  | I37: =IF(E37<>0,ROUND(E37*H37,2),"") -> 
A38: 4.1 PLOTAGEM FORMATO A-1 ( 04 POR EQUIPE POR MÊS) | D38: UND | E38: ='FSUP-I'!E43*4*12 -> 144 | F38: 32.08 | G38: =IF(E38<>0,ROUND(E38*F38,2),"") -> 4619.52 | H38: =IF(F38<>0,F38*(1+0.1)*(1+0.1662),0) -> 41.1528656 | I38: =IF(E38<>0,ROUND(E38*H38,2),"") -> 5926.01
A39: 4.3 RELATÓRIO MENSAL ( 01 POR EQUIPE POR MÊS) | D39: UND | E39: 36 | F39: 18.05 | G39: =IF(E39<>0,ROUND(E39*F39,2),"") -> 649.8 | H39: =IF(F39<>0,F39*(1+0.1)*(1+0.1662),0) -> 23.154901 | I39: =IF(E39<>0,ROUND(E39*H39,2),"") -> 833.58
A40: TOTAL DOS CUSTOS DOS SERVIÇOS GRÁFICOS / COMPUTAÇÃO (R$) | G40: =SUM(G38:G39) -> 5269.32 | I40: =SUM(I38:I39) -> 6759.59
A41: NOME DO INFORMANTE: | D41: QUALIFICAÇÃO:
A42: =FSUP!A38 -> 0 | D42: =FSUP!J38 -> ANALISTA EM DESENVOLVIMENTO REGIONAL DA CODEVASF
A43: ASSINATURA: | H43: DATA:
H44: =FSUP!N40 -> 00:00:00
A45: OBSERVAÇÃO:
A46: 1. ALUGUEL DE VEÍCULOS INCLUI COMBUSTÍVEL E MANUTENÇÃO
A47: 2. CUSTO DO ITEM SEM LUCRO E DESPESAS FISCAIS
A48: 3. PREÇO = CUSTO + LUCRO + DESPESAS FISCAIS. PARA CALCULAR O PREÇO APLICA-SE A SEGUINTE FÓRMULA: CUSTO*(1+0,1)*(1+0,1662)
A49: 4. EXPORTAR " TOTAL CUSTO" PARA A LINHA CORRESPONDE NO FSUP. OS PREÇOS SERÃO APLICADOS PARA FINS DE FATURAMENTO

Sheet FSUP-V
C1: Ministério da Integração Nacional - MI
C2: Companhia de Desenvolvimento dos Vales do São Francisco e do Parnaíba
A5: DETALHAMENTO DO CUSTO DE ADMINISTRAÇÃO | G5: CODIGO:
G6: PFS-V
A7: NOME DA CONSULTORA:
A8: =FSUP!A8 -> 0
A9: PROJETO: | C9: OBJETO: | G9: EDITAL:
A10: =FSUP!A10 -> APOIO À FISCALIZAÇÃO E SUPERVISÃO TÉCNICA DE OBRAS | C10: =FSUP!G10 -> APOIO À FISCALIZAÇÃO E SUPERVISÃO TÉCNICA DE CONTRATOS NA ÁREA DE ATUAÇÃO DA CODEVASF NO ESTADO DO AMAPÁ
A11: SEQ. | B11: DISCRIMINAÇÃO | F11: VALORES
F12: % | G12: R$
A13: 1 | B13: CUSTOS DA EQUIPE DA ADMINISTRAÇÃO CENTRAL DA EMPRESA CONSULTORA(DIRETORIA, PESSOAL TÉCNICO DE APOIO E PESSOAL ADMINISTRATIVO NÃO DIRETAMENTE VINCULADO À PRESTAÇÃO DOS SERVIÇOS | F13: 0.18 | G13: =F13*'FSUP-I'!$K$23 -> 157443.264
A14: 2 | B14: OUTRAS DESPESAS QUE AFETAM O CUSTO DE PRODUÇÃO COMO TREINAMENTO, BIBLIOTECA, PROGRAMA DE QUALIDADE, AUDITORIA INTERNA E EXTERNA | F14: 0.04 | G14: =F14*'FSUP-I'!$K$23 -> 34987.392
A15: 3 | B15: DESPESAS COM ALUGUÉIS, COMUNICAÇÃO, MANUTENÇÃO E TRANSPORTE NÃO DIRETAMENTE RELACIONADOS COM O CUSTO DIRETO DOS SERVIÇOS | F15: 0.03 | G15: =F15*'FSUP-I'!$K$23 -> 26240.544
B39: TOTAIS DO CUSTO DE ADMINISTRAÇÃO | F39: =SUM(F13:F38) -> 0.25 | G39: =SUM(G13:G38) -> 218671.2
A40: NOME DO INFORMANTE: | D40: QUALIFICAÇÃO:
A41: =FSUP!A38 -> 0 | D41: =FSUP!J38 -> ANALISTA EM DESENVOLVIMENTO REGIONAL DA CODEVASF
A42: ASSINATURA: | F42: DATA:
F43: =FSUP!N40 -> 00:00:00
A44: OBSERVAÇÃO:

Sheet FSUP-VI
C1: Ministério da Integração Nacional - MI
C2: Companhia de Desenvolvimento dos Vales do São Francisco e do Parnaíba
A5: DETALHAMENTO DAS DESPESAS FISCAIS | H5: CODIGO:
H6: PFS-VI
A7: NOME DA CONSULTORA:
A8: =FSUP!A8 -> 0
A9: PROJETO: | C9: OBJETO: | H9: EDITAL:
A10: =FSUP!A10 -> APOIO À FISCALIZAÇÃO E SUPERVISÃO TÉCNICA DE OBRAS | C10: =FSUP!G10 -> APOIO À FISCALIZAÇÃO E SUPERVISÃO TÉCNICA DE CONTRATOS NA ÁREA DE ATUAÇÃO DA CODEVASF NO ESTADO DO AMAPÁ
A11: DISCRIMINAÇÃO | F11: VALORES
F12: AP (%) | G12: AP' (%) | H12: R$
A14: 1 - ISS | F14: 5 | G14: =ROUND((1/(1-$F$37/100))*F14,2) -> 5.71 | H14: =(G14/100)*(FSUP!$N$30+FSUP!$N$32+FSUP!$N$33) -> 169926.2802
A15: 2 - PIS | F15: 1.32 | G15: =ROUND((1/(1-$F$37/100))*F15+0.01,2) -> 1.52 | H15: =(G15/100)*(FSUP!$N$30+FSUP!$N$32+FSUP!$N$33) -> 45234.31627
A16: 3 - COFINS | F16: 6.08 | G16: =ROUND((1/(1-$F$37/100))*F16,2) -> 6.94 | H16: =(G16/100)*(FSUP!$N$30+FSUP!$N$32+FSUP!$N$33) -> 206530.3651
A37: TOTAIS DE DESPESAS FISCAIS | F37: =F14+F15+F16 -> 12.4 | G37: =G14+G15+G16 -> 14.17 | H37: =SUM(H13:H36) -> 421690.9616
A38: NOME DO INFORMANTE: | D38: QUALIFICAÇÃO:
A39: =FSUP!A38 -> 0 | D39: =FSUP!J38 -> ANALISTA EM DESENVOLVIMENTO REGIONAL DA CODEVASF
A40: ASSINATURA: | F40: DATA:
A42: OBSERVAÇÃO:
A43: 1 - DISCRIMINAR OS TRIBUTOS QUE INCIDEM SOBRE OS CUSTOS DA PRESTAÇÃO DOS SERVIÇOS
A44: 2 - DF = INDICAR OS % DE CADA TRIBUTO E A SOMA DOS MESMOS (ex: ISS 5% + PIS 1,65% + COFINS 7,60% = 14,25%)
A45: 3 - AS DESPESAS FISCAIS (DF) INCIDEM SOBRE O TOTAL DA FATURA E NÃO SOBRE OS CUSTOS INCORRIDOS,
A46: DEVENDO SER CALCULADO O DF' APLICANDO-SE A SEGUINTE FÓRMULA:
A47: DF' = { [ 1 / ( 1 - DF) ] - 1 } x 100
A48: DF' = { [ 1 / ( 1 - 0,1425 ) ] - 1 } x 100
A49: DF' = 0,1662 ou 16,62% . APLICAR O % ENCONTRADO NA LINHA "G" DO FSUP PARA CALCULAR AS DESPESAS FISCAIS
A50: O TOTAL CALCULADO NA LINHA "G" DO PFSUP SERÁ IMPORTADO PARA COMPOR ESTE DETALHAMENTO.

Sheet FSUP-VII
C1: Ministério da Integração Nacional - MI
C2: Companhia de Desenvolvimento dos Vales do São Francisco e do Parnaíba
A5: DETALHAMENTO DOS ENCARGOS SOCIAIS | G5: CODIGO:
G6: FSUP-VII
A7: NOME DA CONSULTORA:
A8: =FSUP!A8 -> 0
A9: PROJETO: | C9: OBJETO: | G9: EDITAL:
A10: =FSUP!A10 -> APOIO À FISCALIZAÇÃO E SUPERVISÃO TÉCNICA DE OBRAS | C10: =FSUP!G10 -> APOIO À FISCALIZAÇÃO E SUPERVISÃO TÉCNICA DE CONTRATOS NA ÁREA DE ATUAÇÃO DA CODEVASF NO ESTADO DO AMAPÁ
A11: DISCRIMINAÇÃO | F11: VALORES
F12: % | G12: R$
A13: A | B13: ENCARGOS SOCIAIS BÁSICOS
A14: A1 | B14: INSS | F14: 0.2 | G14: =F14*FSUP!$N$14 -> 174936.96
A15: A2 | B15: SESI | F15: 0.015 | G15: =F15*FSUP!$N$14 -> 13120.272
A16: A3 | B16: SENAI | F16: 0.01 | G16: =F16*FSUP!$N$14 -> 8746.848
A17: A4 | B17: INCRA | F17: 0.002 | G17: =F17*FSUP!$N$14 -> 1749.3696
A18: A5 | B18: SEBRAE | F18: 0.006 | G18: =F18*FSUP!$N$14 -> 5248.1088
A19: A5 | B19: SALÁRIO EDUCAÇÃO | F19: 0.025 | G19: =F19*FSUP!$N$14 -> 21867.12
A20: A7 | B20: SEGURO CONTRA ACIDENTES TRABALHO | F20: 0.03 | G20: =F20*FSUP!$N$14 -> 26240.544
A21: A8 | B21: FGTS | F21: 0.08 | G21: =F21*FSUP!$N$14 -> 69974.784
A22: A9 | B22: SECONCI | F22: 0.01 | G22: =F22*FSUP!$N$14 -> 8746.848
A23: SUBTOTAL DE "A" | F23: =ROUND(SUM(F14:F22),4) -> 0.378 | G23: =SUM(G14:G22) -> 330630.8544
A25: B | B25: ENCARGOS SOCIAIS QUE RECEBEM INCIDÊNCIA DE "A"
A26: B1 | B26: REPOUSO SEMANAL REMUNERADO | F26: NÃO INCIDENTE
A27: B2 | B27: FERIADOS | F27: NÃO INCIDENTE
A28: B3 | B28: AUXÍLIO-ENFERMIDADE | F28: 0.0069 | G28: =F28*FSUP!$N$14 -> 6035.32512
A29: B4 | B29: 13º SALÁRIO | F29: 0.0833 | G29: =F29*FSUP!$N$14 -> 72861.24384
A30: B5 | B30: LICENÇA PATERNIDADE | F30: 0.0006 | G30: =F30*FSUP!$N$14 -> 524.81088
A31: B6 | B31: FALTAS JUSTIFICADAS | F31: 0.0056 | G31: =F31*FSUP!$N$14 -> 4898.23488
A32: B7 | B32: DIAS DE CHUVAS | F32: NÃO INCIDENTE
A33: B8 | B33: AUXILIO ACIDENTE DE TRABALHO | F33: 0.0009 | G33: =F33*FSUP!$N$14 -> 787.21632
A34: B9 | B34: FÉRIAS GOZADAS | F34: 0.0968 | G34: =F34*FSUP!$N$14 -> 84669.48864
A35: B10 | B35: SALÁRIO MATERNIDADE | F35: 0.0003 | G35: =F35*FSUP!$N$14 -> 262.40544
A36: SUBTOTAL DE "B" | F36: =SUM(F26:F35) -> 0.1944 | G36: =SUM(G26:G35) -> 170038.7251
A38: C | B38: ENCARGOS SOCIAIS QUE NÃO RECEBEM INCIDÊNCIA DE "A"
A39: C1 | B39: AVISO PRÉVIO INDENIZADO | F39: 0.03 | G39: =F39*FSUP!$N$14 -> 26240.544
A40: C2 | B40: AVISO PRÉVIO TRABALHADO | F40: 0.0007 | G40: =F40*FSUP!$N$14 -> 612.27936
A41: C3 | B41: FÉRIAS INDENIZADAS+1/3 | F41: 0.0135 | G41: =F41*FSUP!$N$14 -> 11808.2448
A42: C4 | B42: DEPÓSITO RESCISÃO SEM JUSTA CAUSA | F42: 0.0376 | G42: =F42*FSUP!$N$14 -> 32888.14848
A43: C5 | B43: INDENIZAÇÃO ADICIONAL | F43: 0.0025 | G43: =F43*FSUP!$N$14 -> 2186.712
A44: SUBTOTAL DE "C" | F44: =ROUND(SUM(F39:F43),4) -> 0.0843 | G44: =SUM(G39:G43) -> 73735.92864
A46: D | B46: REINCIDÊNCIAS
A47: D1 | B47: Reincidência de A sobre B | F47: 0.0735 | G47: =F47*FSUP!$N$14 -> 64289.3328
A48: D2 | B48: Reincidência de A sobre Aviso Prévio Trabalhado + Reincidência de FGTS sobre Aviso Prévio Indenizado | F48: 0.0027 | G48: =F48*FSUP!$N$14 -> 2361.64896
A49: SUBTOTAL DE "D" | F49: =SUM(F47:F48) -> 0.0762 | G49: =SUM(G47:G48) -> 66650.98176
A51: TOTAIS DE ENCARGOS SOCIAIS | F51: =ROUND(F23+F36+F44+F49,4) -> 0.7329 | G51: =G23+G36+G44+G49 -> 641056.4899
A52: NOME DO INFORMANTE: | D52: QUALIFICAÇÃO:
A53: =FSUP!A38 -> 0 | D53: =FSUP!J38 -> ANALISTA EM DESENVOLVIMENTO REGIONAL DA CODEVASF
A54: ASSINATURA: | F54: DATA:
F55: =FSUP!N40 -> 00:00:00
A56: Observação:

Sheet FSUP-VIII
B1: Ministério da Integração Nacional - MI
B2: Companhia de Desenvolvimento dos Vales do São Francisco e do Parnaíba
A5: CRONOGRAMA FINANCEIRO | H5: CODIGO:
H6: FSUP-VIII
A7: NOME DA CONSULTORA:
A8: =FSUP!A8 -> 0
A9: PROJETO: | C9: OBJETO: | H9: EDITAL:
A10: =FSUP!A10 -> APOIO À FISCALIZAÇÃO E SUPERVISÃO TÉCNICA DE OBRAS | C10: =FSUP!G10 -> APOIO À FISCALIZAÇÃO E SUPERVISÃO TÉCNICA DE CONTRATOS NA ÁREA DE ATUAÇÃO DA CODEVASF NO ESTADO DO AMAPÁ
A11: Nº | B11: TAREFA | C11: RELATÓRIO / SERVIÇO DE CAMPO | F11: MESES CORRIDOS | G11: VALOR DA PARCELA (R$)
A12: 1 | B12: APOIO À FISCALIZAÇÃO E SUPERVISÃO TÉCNICA DE OBRAS | C12: RELATÓRIO MENSAL 01 | F12: 30 | G12: =#REF!*(1+0.1)*(1+0.1662) ->  | H12: =FSUP!$N$36/12 -> 289211.95
A13: 2 | B13: APOIO À FISCALIZAÇÃO E SUPERVISÃO TÉCNICA DE OBRAS | C13: RELATÓRIO MENSAL 02 | F13: =F12+30 -> 60 | G13: =(#REF!-#REF!*(1+0.1)*(1+0.1662))*8/100 ->  | H13: =FSUP!$N$36/12 -> 289211.95
A14: 3 | B14: APOIO À FISCALIZAÇÃO E SUPERVISÃO TÉCNICA DE OBRAS | C14: RELATÓRIO MENSAL 03 | F14: 90 | G14: =(#REF!-#REF!*(1+0.1)*(1+0.1662))*5/100 ->  | H14: =FSUP!$N$36/12 -> 289211.95
A15: 4 | B15: APOIO À FISCALIZAÇÃO E SUPERVISÃO TÉCNICA DE OBRAS | C15: RELATÓRIO MENSAL 04 | F15: 120 | G15: =(#REF!-#REF!*(1+0.1)*(1+0.1662))*7.5/100 ->  | H15: =FSUP!$N$36/12 -> 289211.95
A16: 5 | B16: APOIO À FISCALIZAÇÃO E SUPERVISÃO TÉCNICA DE OBRAS | C16: RELATÓRIO MENSAL 05 | F16: 150 | G16: =(#REF!-#REF!*(1+0.1)*(1+0.1662))*7.5/100 ->  | H16: =FSUP!$N$36/12 -> 289211.95
A17: 6 | B17: APOIO À FISCALIZAÇÃO E SUPERVISÃO TÉCNICA DE OBRAS | C17: RELATÓRIO MENSAL 06 | F17: 180 | G17: =(#REF!-#REF!*(1+0.1)*(1+0.1662))*9/100 ->  | H17: =FSUP!$N$36/12 -> 289211.95
A18: 7 | B18: APOIO À FISCALIZAÇÃO E SUPERVISÃO TÉCNICA DE OBRAS | C18: RELATÓRIO MENSAL 07 | F18: 210 | G18: =(#REF!-#REF!*(1+0.1)*(1+0.1662))*9/100 ->  | H18: =FSUP!$N$36/12 -> 289211.95
A19: 8 | B19: APOIO À FISCALIZAÇÃO E SUPERVISÃO TÉCNICA DE OBRAS | C19: RELATÓRIO MENSAL 08 | F19: 240 | G19: =(#REF!-#REF!*(1+0.1)*(1+0.1662))*9/100 ->  | H19: =FSUP!$N$36/12 -> 289211.95
A20: 9 | B20: APOIO À FISCALIZAÇÃO E SUPERVISÃO TÉCNICA DE OBRAS | C20: RELATÓRIO MENSAL 09 | F20: 270 | G20: =(#REF!-#REF!*(1+0.1)*(1+0.1662))*9/100 ->  | H20: =FSUP!$N$36/12 -> 289211.95
A21: 10 | B21: APOIO À FISCALIZAÇÃO E SUPERVISÃO TÉCNICA DE OBRAS | C21: RELATÓRIO MENSAL 10 | F21: 300 | G21: =(#REF!-#REF!*(1+0.1)*(1+0.1662))*9/100 ->  | H21: =FSUP!$N$36/12 -> 289211.95
A22: 11 | B22: APOIO À FISCALIZAÇÃO E SUPERVISÃO TÉCNICA DE OBRAS | C22: RELATÓRIO MENSAL 11 | F22: 330 | G22: =(#REF!-#REF!*(1+0.1)*(1+0.1662))*9/100 ->  | H22: =FSUP!$N$36/12 -> 289211.95
A23: 12 | B23: APOIO À FISCALIZAÇÃO E SUPERVISÃO TÉCNICA DE OBRAS | C23: RELATÓRIO MENSAL 12 | F23: 360 | H23: =FSUP!$N$36/12 -> 289211.95
A24: TOTAL | G24: =SUM(G12:G23) ->  | H24: =SUM(H12:H23) -> 3470543.4
A25: NOME DO INFORMANTE: | C25: QUALIFICAÇÃO:
A26: =FSUP!A38 -> 0 | C26: =FSUP!J38 -> ANALISTA EM DESENVOLVIMENTO REGIONAL DA CODEVASF
A27: ASSINATURA: | F27: DATA:
F28: =FSUP!N40 -> 00:00:00
A29: OBSERVAÇÃO:

Sheet PESQUISA DE PREÇOS (hidden)
A1: AP | E1: 2.1 | N1: 2.2 | S1: 2.3 | Y1: 2.4 | AB1: 2.5 | AE1: 2.6 | AJ1: 2.7 | AO1: 2.8 | AY1: 3.1 | BI1: 3.2 | BS1: 3.3 | CC1: 3.4
A2: AP | B2: ALUGUEL DE SALA COMERCIAL | E2: =AVERAGE(E4:E9) -> 1113.333333 | G2: MOBILIÁRIO | N2: =(AVERAGE(N4:N6)+AVERAGE(N7:N9)+AVERAGE(N10:N12)) -> 177.1806 | O2: =(AVERAGE(O4:O6)+AVERAGE(O7:O9)+AVERAGE(O10:O12)) -> 14.76505 | Q2: PLANO INTERNET FIXO | S2: =AVERAGE(S4:S6) -> 106.6266667 | U2: PLANO CELULAR/ INTERNET MÓVEL | Y2: =AVERAGE(V4:Y13) -> 60.081 | AA2: ENERGIA ELÉTRICA (CEA) | AB2: =(AB3*AB4) -> 198.233 | AD2: ÁGUA E ESGOTO - Caesa | AE2: =AE9+(AE9*AE10) -> 93.45 | AG2: MATERIAL P/ ESCRITÓRIO | AJ2: =SUM(AJ4:AJ20) -> 84.65 | AL2: MATERIAL LIMPEZA | AO2: =SUM(AO4:AO13) -> 39.73416667 | AQ2: ALUGUEL DE NOTEBOOK | AX2: =AVERAGE(AX4:AX9) -> 744.8456 | AY2: =AVERAGE(AY4:AY9) -> 62 | BA2: ALUGUEL DE IMPRESSORAS | BH2: =AVERAGE(BH4:BH9) -> 278.7906667 | BI2: =AVERAGE(BI4:BI9) -> 23 | BK2: ALUGUEL DE ESTAÇÃO TOTAL E ACESSÓRIOS | BR2: =AVERAGE(BR4:BR6) -> 3139.312 | BS2: =AVERAGE(BS4:BS6) -> 261.6666667 | BU2: ALUGUEL GPS | CB2: =AVERAGE(CB4:CB6) -> 212.8848 | CC2: =AVERAGE(CC4:CC6) -> 17.66666667
B3: Endereço | C3: Descrição | D3: Contato | E3: Valor c/ condomínio | G3: Loja | H3: Item | I3: Frete | J3: Valor s/ frete | K3: VN (Equipamento novo + frete) | L3: VR (Valor residual) | M3: VU Vida Útil (Anos) | N3: Depreciação/ ano | O3: Aluguel mensal | Q3: Empresa | R3: Capacidade | S3: Valor | U3: Velocidade | V3: Tim | W3: Claro | X3: Vivo | Y3: Oi | AA3: Quantidade (Kwh) | AB3: 350 | AD3: Tipo de consumo | AE3: Comercial C1 | AG3: Descrição | AH3: Qtde/ano | AI3: Valor unitário | AJ3: Total/mês | AL3: Descrição | AM3: Qtde/ano | AN3: Valor unitário | AO3: Total/mês | AQ3: Loja | AR3: Configuração | AS3: Frete | AT3: Valor do equipamento | AU3: VN (Equipamento novo + frete) | AV3: VR (Valor residual) | AW3: VU Vida Útil (Anos) | AX3: Depreciação/ ano | AY3: Aluguel mensal | BA3: Loja | BB3: Configuração | BC3: Frete | BD3: Valor do equipamento | BE3: VN (Equipamento novo + frete) | BF3: VR (Valor residual) | BG3: VU Vida Útil (Anos) | BH3: Depreciação/ ano | BI3: Aluguel mensal | BK3: Loja | BL3: Configuração | BM3: Frete | BN3: Valor do equipamento | BO3: VN (Equipamento novo + frete) | BP3: VR (Valor residual) | BQ3: VU Vida Útil (Anos) | BR3: Depreciação/ ano | BS3: Aluguel mensal | BU3: Loja | BV3: Configuração | BW3: Frete | BX3: Valor do equipamento | BY3: VN (Equipamento novo + frete) | BZ3: VR (Valor residual) | CA3: VU Vida Útil (Anos) | CB3: Depreciação/ ano | CC3: Aluguel mensal
B4: Av. Fab, sala/203 - Macapá Office Center, 1070, Centro | C4: Sala comercial com 1 banheiro e 3 salas, condomínio incluso. | D4: Elite Imóveis | E4: 1200 | G4: Maiart | H4: MESA ECONÔMICA COM 3 GAVETAS 1,50X0,60 | I4: 269.42 | J4: 495 | K4: =SUM(I4:J4) -> 764.42 | L4: 0.1 | M4: 10 | N4: =(K4-(L4*K4))/M4 -> 68.7978 | O4: =N4/12 -> 5.73315 | Q4: Gnex | R4: 200 Mega | S4: 139.9 | U4: 8GB | X4: 59.99 | AA4: Valor Unitário | AB4: 0.56638 | AD4: Consumo diário de água/ pessoa para escritório: | AE4: 50 | AG4: Caneta Esferográfica BIC Cristal Dura Mais, A Clássica, Azul, Ponta Média de 1.0mm | AH4: 20 | AI4: =5.8/4 -> 1.45 | AJ4: =(AH4*AI4)/12 -> 2.416666667 | AL4: Alcool em Gel 420 G | AM4: 12 | AN4: 14.4 | AO4: =(AM4*AN4)/12 -> 14.4 | AQ4: Ponto Frio | AR4: Intel Core i5 1135G7 2,4 Ghz - 8GB RAM - 256 GB SSD | AS4: 150.76 | AT4: 5799.9 | AU4: =SUM(AS4:AT4) -> 5950.66 | AV4: 0.2 | AW4: 5 | AX4: =(AU4-(AV4*AU4))/AW4 -> 952.1056 | AY4: =ROUND(AX4/12,0) -> 79 | BA4: Magalu | BB4: Impressora Mutifuncional Epson EcoTank L5190 - Tinta | BC4: 281.72 | BD4: 1580.07 | BE4: =SUM(BC4:BD4) -> 1861.79 | BF4: 0.2 | BG4: 5 | BH4: =(BE4-(BF4*BE4))/BG4 -> 297.8864 | BI4: =ROUND(BH4/12,0) -> 25 | BK4: Mercado Livre | BL4: Estação Total Kolida Cts-632r6 C/ acessórios | BM4: 0 | BN4: 20099 | BO4: =SUM(BM4:BN4) -> 20099 | BP4: 0.2 | BQ4: 5 | BR4: =(BO4-(BP4*BO4))/BQ4 -> 3215.84 | BS4: =ROUND(BR4/12,0) -> 268 | BU4: Garmin | BV4: GPS Garmin Etrex 10 | BW4: 0 | BX4: 1299 | BY4: =SUM(BW4:BX4) -> 1299 | BZ4: 0.2 | CA4: 5 | CB4: =(BY4-(BZ4*BY4))/CA4 -> 207.84 | CC4: =ROUND(CB4/12,0) -> 17
B5: Av. Mendonça Furtado, D, 2384, Santa Rita | C5: Sala comercial com banheiro | E5: 780 | G5: Amazon | H5: MESA ECONÔMICA COM 3 GAVETAS 1,50X0,60 | I5: 304.98 | J5: 550 | K5: =SUM(I5:J5) -> 854.98 | L5: 0.1 | M5: 10 | N5: =(K5-(L5*K5))/M5 -> 76.9482 | O5: =N5/12 -> 6.41235 | Q5: Claro | R5: 125 Mega | S5: 79.99 | U5: 9GB | X5: 70.99 | AD5: Equipe: | AE5: 13 | AG5: Caderno 80 (fls) | AH5: 13 | AI5: 11 | AJ5: =(AH5*AI5)/12 -> 11.91666667 | AL5: Água Sanitária | AM5: 12 | AN5: 7.8 | AO5: =(AM5*AN5)/12 -> 7.8 | AQ5: Magalu | AR5: Intel Core i5 1135G7 2,4 Ghz - 8GB RAM - 256 GB SSD | AS5: 156.9 | AT5: 6000 | AU5: =SUM(AS5:AT5) -> 6156.9 | AV5: 0.2 | AW5: 5 | AX5: =(AU5-(AV5*AU5))/AW5 -> 985.104 | AY5: =ROUND(AX5/12,0) -> 82 | BA5: Kalunga | BB5: Impressora Mutifuncional Epson EcoTank L5190 - Tinta | BC5: 63.78 | BD5: 1844.1 | BE5: =SUM(BC5:BD5) -> 1907.88 | BF5: 0.2 | BG5: 5 | BH5: =(BE5-(BF5*BE5))/BG5 -> 305.2608 | BI5: =ROUND(BH5/12,0) -> 25 | BK5: Magalu | BL5: Estação Total Kolida Cts-632r10 C/ acessórios | BM5: 208.55 | BN5: 20329 | BO5: =SUM(BM5:BN5) -> 20537.55 | BP5: 0.2 | BQ5: 5 | BR5: =(BO5-(BP5*BO5))/BQ5 -> 3286.008 | BS5: =ROUND(BR5/12,0) -> 274 | BU5: Magalu | BV5: GPS Garmin Etrex 10 | BW5: 86.9 | BX5: 1279.65 | BY5: =SUM(BW5:BX5) -> 1366.55 | BZ5: 0.2 | CA5: 5 | CB5: =(BY5-(BZ5*BY5))/CA5 -> 218.648 | CC5: =ROUND(CB5/12,0) -> 18
B6: Central, Macapá, AP | C6: Sala comercial 50m² com 1 banheiro | D6: Campainha Nome: Manoel Souza Brito Telefone: (96) 9919-33184 | E6: 1000 | G6: Móveis Milani | H6: MESA ECONÔMICA COM 3 GAVETAS 1,50X0,60 | I6: 269.42 | J6: 550 | K6: 819.42 | L6: 0.1 | M6: 10 | N6: =(K6-(L6*K6))/M6 -> 73.7478 | O6: 6.14565 | Q6: Claro | R6: 250 Mega | S6: 99.99 | U6: 10GB | AD6: Consumo diário: | AE6: =AE4*AE5 -> 650 | AG6: Bloco autoadesivo c/ 450 fls | AH6: 8 | AI6: 38 | AJ6: 25.33333333 | AL6: Detergente | AM6: 5 | AN6: 2.6 | AO6: 1.083333333 | AQ6: Kabum | AR6: Intel Core i5 1135G7 2,4 Ghz - 8GB RAM - 256 GB SSD | AS6: 0 | AT6: 5299.9 | AU6: 5299.9 | AV6: 0.2 | AW6: 5 | AX6: 847.984 | AY6: 71 | BA6: Amazon | BB6: Impressora Mutifuncional Epson EcoTank L5190 - Tinta | BC6: 0 | BD6: 2209.9 | BE6: 2209.9 | BF6: 0.2 | BG6: 5 | BH6: 353.584 | BI6: 29 | BK6: Casas Bahia | BL6: Estação Total Kolida Cts-632r10 C/ acessórios | BM6: 208.55 | BN6: 18017 | BO6: 18225.55 | BP6: 0.2 | BQ6: 5 | BR6: 2916.088 | BS6: 243 | BU6: Extra | BV6: GPS Garmin Etrex 10 | BW6: 77.04 | BX6: 1249 | BY6: 1326.04 | BZ6: 0.2 | CA6: 5 | CB6: 212.1664 | CC6: 18
B7: Av. Fab, 1070 - Central | C7: Sala comercial com 1 banheiro e 2 salas, condomínio R$ 400 (já incluso no valor - ver fórmula) | D7: DB Imóveis, Av. Padre Julio Maria Lombaerd, 1092, Entre Odilardo Silva e Jovino Dinoá, Bairro: Centro, Macapá AP, CEP: 68900-030 | E7: 1900 | G7: Madeira Madeira | H7: CADEIRA DE ESCRITÓRIO SECRETÁRIA GIRATÓRIA COM BRAÇOS | I7: 324.51 | J7: 278.12 | K7: 602.63 | L7: 0.1 | M7: 10 | N7: =(K7-(L7*K7))/M7 -> 54.2367 | O7: 4.519725 | Q7: PLANO TELEFONE + INTERNET FIXO | S7: =AVERAGE(S8:S10) -> 113.2933333 | U7: 12 GB | W7: 49.99 | Y7: 39.99 | AD7: Dias úteis: | AE7: 22 | AG7: Pasta c/ Elástico 235mmx335mm | AH7: 5 | AI7: 4.5 | AJ7: 1.875 | AL7: Limpa-Vidros | AM7: 5 | AN7: 4.5 | AO7: 1.875 | AQ7: Kabum | AR7: Intel Core i5 10210U - 8GB RAM - 256 GB SSD | AS7: 0 | AT7: 3899.9 | AU7: 3899.9 | AV7: 0.2 | AW7: 5 | AX7: 623.984 | AY7: 52 | BA7: Extra | BB7: Impressora HP Laser 135A | BC7: 299.92 | BD7: 1599 | BE7: 1898.92 | BF7: 0.2 | BG7: 5 | BH7: 303.8272 | BI7: 25
B8: Endereço: Av henrique galucio 659 - prox. à praça floriano peixoto | C8: Duas salas Copa Banheiro | D8: MGF Imóveis telefone p/ contato: 991127767 | E8: 800 | G8: Magalu | H8: CADEIRA DE ESCRITÓRIO SECRETÁRIA GIRATÓRIA COM BRAÇOS | I8: 161.15 | J8: 265.91 | K8: 427.06 | L8: 0.1 | M8: 10 | N8: =(K8-(L8*K8))/M8 -> 38.4354 | O8: 3.20295 | Q8: Oi | R8: 400 Mega | S8: 99.9 | U8: 10GB | AD8: Consumo mensal: | AE8: =AE6*AE7 -> 14300 | AG8: Clipes (500g) | AH8: 3 | AI8: 17.9 | AJ8: 4.475 | AL8: Multiuso 500 ml | AM8: 5 | AN8: 4.7 | AO8: 1.958333333 | AQ8: Magalu | AR8: Intel Core i5 10210U - 8GB RAM - 256 GB SSD | AS8: 71.28 | AT8: 3254.07 | AU8: 3325.35 | AV8: 0.2 | AW8: 5 | AX8: 532.056 | AY8: 44 | BA8: Kalunga | BB8: Impressora HP Laser 135A | BC8: 87.52 | BD8: 1196.1 | BE8: 1283.62 | BF8: 0.2 | BG8: 5 | BH8: 205.3792 | BI8: 17
B9: Avenida Henrique Galucio entre Manoel Eudóxio e Hamilton silva | C9: 55m² de área | D9: MGF Imóveis Whatsapp 96 99153 1901 | E9: 1000 | G9: Extra | H9: CADEIRA DE ESCRITÓRIO SECRETÁRIA GIRATÓRIA COM BRAÇOS | I9: 324.51 | J9: 362.55 | K9: 687.06 | L9: 0.1 | M9: 10 | N9: =(K9-(L9*K9))/M9 -> 61.8354 | O9: 5.15295 | Q9: Claro (c/ telefone) | R9: 125 Mega | S9: 109.99 | U9: 20GB | V9: 49.99 | W9: 59.99 | AD9: Tarifa - Água (Até 15m³) | AE9: 53.4 | AG9: Grampeador 26/6 20 fl | AH9: 1 | AI9: 31.9 | AJ9: 2.658333333 | AL9: Esponja multiuso - 3 un | AM9: 4 | AN9: 4.9 | AO9: 1.633333333 | AQ9: Americanas | AR9: Intel Core i5 10210U - 8GB RAM - 256 GB SSD | AS9: 0 | AT9: 3299 | AU9: 3299 | AV9: 0.2 | AW9: 5 | AX9: 527.84 | AY9: 44 | BA9: Magalu | BB9: Impressora HP Laser 135A | BC9: 84.47 | BD9: 1208.07 | BE9: 1292.54 | BF9: 0.2 | BG9: 5 | BH9: 206.8064 | BI9: 17
G10: Leroy Merlin | H10: ARMÁRIO ALTO PARA ESCRITÓRIO ME4151 | I10: 251.19 | J10: 369.9 | K10: 621.09 | L10: 0.1 | M10: 10 | N10: 55.8981 | O10: 4.658175 | Q10: Claro (c/ telefone) | R10: 250 Mega | S10: 129.99 | U10: 25GB | V10: 54.99 | AD10: Tarifa - Esgoto | AE10: 0.75 | AG10: Grampo 26/6 (5000 un) | AH10: 5 | AI10: 9.1 | AJ10: 3.791666667 | AL10: Vassoura | AM10: 1 | AN10: 15.59 | AO10: 1.299166667
G11: Marabraz | H11: ARMÁRIO ALTO PARA ESCRITÓRIO ME4151 | I11: 196.53 | J11: 379.02 | K11: 575.55 | L11: 0.1 | M11: 10 | N11: 51.7995 | O11: 4.316625 | U11: 26 GB | V11: 64.99 | AG11: Envelope CX 100 Un | AH11: 2 | AI11: 36 | AJ11: 6 | AL11: Rodo | AM11: 1 | AN11: 29.03 | AO11: 2.419166667
G12: Panorama | H12: ARMÁRIO ALTO PARA ESCRITÓRIO ME4151 | I12: 212.54 | J12: 341.27 | K12: 553.81 | L12: 0.1 | M12: 10 | N12: 49.8429 | O12: 4.153575 | U12: 100GB | Y12: 49.99 | AG12: Cola branca 225g lavável | AH12: 2 | AI12: 12.2 | AJ12: 2.033333333 | AL12: Pano de chão 40x60 | AM12: 6 | AN12: 11.74 | AO12: 5.87
U13: Ilimitado | Y13: 99.9 | AG13: Fita adesiva 48mmx45m transparente | AH13: 5 | AI13: 7.2 | AJ13: 3 | AL13: Flanela Algodão | AM13: 5 | AN13: 3.35 | AO13: 1.395833333
AG14: Fita adesiva 12mmx30m transparente | AH14: 5 | AI14: 4.6 | AJ14: 1.916666667
AG15: Régua em poliestireno 30 cm transparente | AH15: 2 | AI15: 3.3 | AJ15: 0.55
AG16: Tesoura uso geral 21cm | AH16: 2 | AI16: 15.2 | AJ16: 2.533333333
AG17: Extrator de grampo espátula galvanizado | AH17: 2 | AI17: 6.9 | AJ17: 1.15
AG18: Recarga tonner | AI18: =AVERAGE(AH26:AJ26,AH29:AJ29) -> 254.1866667 | AJ18: 0
AG19: Carimbo 55x35mm | AH19: =10 -> 10 | AI19: 18 | AJ19: 15
AG20: Papel A4 (500 fls) | AI20: 24.9 | AJ20: 0
AG23: Recarga impressora
AG24: Impressora Mutifuncional Epson EcoTank L5190 - Tinta | AH24: 52.5 | AI24: 52.9 | AJ24: 217.6
AG25: Peso | AH25: 4 | AI25: 4 | AJ25: 1
AG26: Valor por mês | AH26: =AH24*AH25 -> 210 | AI26: =AI24*AI25 -> 211.6 | AJ26: 217.6
AG27: Cartucho toner p/HP preto 105AB W1105AB HP | AH27: 339.9 | AI27: 199.02 | AJ27: 347
AG28: Peso | AH28: 1 | AI28: 1 | AJ28: 1
AG29: Valor por mês | AH29: =AH27*AH28 -> 339.9 | AI29: =AI27*AI28 -> 199.02 | AJ29: 347
